[Event "FIDE World Cadets GU12 2022"]
[Site "Batumi"]
[Date "2022.09.25"]
[Round "9.20"]
[White "Vizcarra Quispe, Ramalia Bellaluz"]
[Black "Belaya, Liliya"]
[Result "1-0"]
[ECO "D02"]
[WhiteElo "1429"]
[BlackElo "1266"]
[Annotator "NA RC COMBH"]
[PlyCount "57"]
[EventDate "2022.09.16"]
[EventType "swiss"]
[EventCountry "GEO"]
[SourceTitle "playchess.com"]
[Source "ChessBase"]
[SourceQuality "1"]
[TimeControl "5400+30"]

1. Nf3 Nf6 2. Nc3 Nc6 3. d4 d5 4. g3 Bf5 5. a3 g6 6. Bg2 Bg7 7. O-O Qd7 8. b4 a6 9. Na4 b6 10. Nb2 Ne4 11. e3 Bg4 12. Qe1 e5 13. c4 Be6 14. b5 axb5 15. cxb5 Na5 16. a4 exd4 17. exd4 Nb3 18. Ra3 Nxd4 19. Nxd4 Bxd4 20. Rd3 Bxf2+ 21. Rxf2 Nxf2 22. Qxf2 O-O-O 23. Bf4 c5 24. bxc6 Qxc6 25. Be5 Kb7 26. Rc3 Qd7 27. a5 Qb5 28. Rc7+ Ka8 29. axb6 1-0

[Event "FIDE World Cadets GU12 2022"]
[Site "Batumi"]
[Date "2022.09.26"]
[Round "10.1"]
[White "Shubhi Gupta"]
[Black "Preobrazhenskaya, Diana"]
[Result "1/2-1/2"]
[ECO "D03"]
[WhiteElo "1733"]
[BlackElo "1994"]
[Annotator "NA RC"]
[PlyCount "215"]
[EventDate "2022.09.16"]
[EventType "swiss"]
[EventCountry "GEO"]
[SourceTitle "playchess.com"]
[Source "ChessBase"]
[SourceQuality "1"]
[TimeControl "5400+30"]

1. d4 {[%emt 0:02:00]} d5 {[%emt 0:01:00]} 2. Nf3 {[%emt 0:00:30]} Nf6 {[%emt 0:00:00]} 3. Bg5 {[%emt 0:00:30]} Ne4 {[%emt 0:01:00]} 4. Bh4 {[%emt 0:00:30]} c5 {[%emt 0:11:30]} 5. c3 {[%emt 0:07:30]} Qb6 $11 {[%emt 0:04:30]} 6. Qc1 {[%emt 0:06:30]} Bf5 {[%emt 0:05:30]} 7. e3 {[%emt 0:03:30]} Nc6 {[%emt 0:05:30]} 8. Nbd2 {[%emt 0:02:30]} Rc8 {[%emt 0:04:30]} 9. Nb3 {[%emt 0:06:30]} a5 {[%emt 0:06:30]} 10. dxc5 {[%emt 0:05:30]} Nxc5 {[%emt 0:00:30]} 11. Nxc5 {[%emt 0:02:30]} Qxc5 {[%emt 0:00:30]} 12. Nd4 {[%emt 0:00:30]} Bg6 {[%emt 0:04:30]} 13. Bg3 {[%emt 0:02:30]} e6 {[%emt 0:06:30]} 14. Qd2 {[%emt 0:03:30]} Be7 {[%emt 0:11:30]} 15. a4 {[%emt 0:06:30]} O-O {[%emt 0:01:30]} 16. Bb5 {[%emt 0:03:30]} e5 {[%emt 0:10:30]} 17. Nb3 {[%emt 0:00:30]} Qb6 {[%emt 0:00:30]} 18. O-O {[%emt 0:02:30]} Rfd8 {[%emt 0:03:30]} 19. Kh1 {[%emt 0:03:30]} d4 {[%emt 0:08:33]} 20. exd4 {[%emt 0:13:30]} exd4 {[%emt 0:00:32]} 21. cxd4 {[%emt 0:00:30]} Nb4 {[%emt 0:02:43]} 22. Rac1 {[%emt 0:02:30]} Bc2 {[%emt 0:01:03]} 23. Qe3 {[%emt 0:01:30]} Nd5 {[%emt 0:02:20]} 24. Qf3 {[%emt 0:02:30]} Bg5 {[%emt 0:00:29]} 25. Rce1 {[%emt 0:04:40]} Bxb3 {[%emt 0:01:05]} 26. Qxb3 {[%emt 0:00:08]} Qxd4 {[%emt 0:00:27]} 27. Rd1 {[%emt 0:00:25]} Qc5 {[%emt 0:01:00]} 28. f4 {[%emt 0:01:59]} Bf6 {[%emt 0:00:38]} 29. Bf2 {[%emt 0:00:33]} Qb4 {[%emt 0:00:41]} 30. Qf3 {[%emt 0:00:45]} Ne7 {[%emt 0:03:00]} 31. Bb6 {[%emt 0:01:16]} Rxd1 {[%emt 0:00:38]} 32. Rxd1 {[%emt 0:00:11]} h6 {[%emt 0:01:19]} 33. h3 {[%emt 0:02:02]} Qxb2 {[%emt 0:00:32]} 34. Qxb7 {[%emt 0:00:20]} Qc2 {[%emt 0:00:59]} 35. Re1 {[%emt 0:00:47]} Nf5 {[%emt 0:01:49]} 36. Bd3 {[%emt 0:01:56]} Qxd3 {[%emt 0:00:49]} 37. Qxc8+ {[%emt 0:00:30]} Kh7 {[%emt 0:00:00]} 38. Qc1 {[%emt 0:01:50]} g6 {[%emt 0:00:45]} 39. Qc7 {[%emt 0:00:59]} Kg7 {[%emt 0:00:17]} 40. Bxa5 {[%emt 0:00:50]} Ng3+ {[%emt 0:00:30]} 41. Kh2 {[%emt 0:00:00]} Ne4 {[%emt 0:00:34]} 42. Rxe4 {[%emt 0:00:59]} Qxe4 {[%emt 0:00:30]} 43. Bc3 {[%emt 0:00:00]} Bxc3 {[%emt 0:00:16]} 44. Qxc3+ {[%emt 0:00:23]} Kg8 {[%emt 0:00:00]} 45. a5 {[%emt 0:02:23]} Qxf4+ {[%emt 0:00:05]} 46. Qg3 {[%emt 0:00:32]} Qa4 {[%emt 0:00:24]} 47. Qe5 {[%emt 0:01:07]} h5 {[%emt 0:00:57]} 48. Qb8+ {[%emt 0:01:37]} Kg7 {[%emt 0:00:23]} 49. Qb2+ {[%emt 0:01:27]} Kg8 {[%emt 0:00:16]} 50. Qb6 {[%emt 0:00:53]} Qf4+ {[%emt 0:00:58]} 51. Kg1 {[%emt 0:00:30]} Qc1+ {[%emt 0:00:30]} 52. Kf2 {[%emt 0:00:00]} Qd2+ {[%emt 0:00:46]} 53. Kf3 {[%emt 0:00:00]} Qd3+ {[%emt 0:01:06]} 54. Kf4 {[%emt 0:00:08]} Kg7 {[%emt 0:00:33]} 55. a6 {[%emt 0:00:58]} Qd2+ {[%emt 0:00:30]} 56. Ke5 {[%emt 0:00:28]} Qe2+ {[%emt 0:00:28]} 57. Kd6 {[%emt 0:00:54]} Qe6+ {[%emt 0:00:25]} 58. Kc7 {[%emt 0:00:08]} Qe7+ {[%emt 0:00:48]} 59. Kb8 {[%emt 0:00:06]} Qe8+ {[%emt 0:00:07]} 60. Ka7 {[%emt 0:00:39]} Qd7+ {[%emt 0:00:30]} 61. Qb7 {[%emt 0:00:03]} Qd4+ {[%emt 0:00:37]} 62. Kb8 {[%emt 0:00:10]} Qd6+ {[%emt 0:00:36]} 63. Kc8 {[%emt 0:01:57]} Qe6+ {[%emt 0:00:30]} 64. Kc7 {[%emt 0:00:00]} Qe7+ {[%emt 0:00:30]} 65. Kc6 {[%emt 0:00:00]} Qe6+ {[%emt 0:00:36]} 66. Kc5 {[%emt 0:00:00]} Qe3+ {[%emt 0:00:32]} 67. Kc4 {[%emt 0:00:12]} Qe2+ {[%emt 0:00:13]} 68. Kc3 {[%emt 0:00:49]} Qe3+ {[%emt 0:00:30]} 69. Kc2 {[%emt 0:00:10]} Qe2+ {[%emt 0:00:30]} 70. Kb1 {[%emt 0:00:00]} Qd1+ {[%emt 0:00:34]} 71. Ka2 {[%emt 0:00:08]} Qa4+ {[%emt 0:00:30]} 72. Kb2 {[%emt 0:00:00]} Qd4+ {[%emt 0:00:00]} 73. Kc2 {[%emt 0:00:00]} Qf2+ {[%emt 0:00:25]} 74. Kd1 {[%emt 0:00:00]} Qf1+ {[%emt 0:00:37]} 75. Kd2 {[%emt 0:00:29]} Qf2+ {[%emt 0:00:30]} 76. Kd3 {[%emt 0:00:00]} Qf1+ {[%emt 0:00:39]} 77. Ke3 {[%emt 0:00:00]} Qe1+ {[%emt 0:00:10]} 78. Kf3 {[%emt 0:03:15]} Qd1+ {[%emt 0:01:03]} 79. Kf4 {[%emt 0:00:26]} Qd2+ {[%emt 0:00:54]} 80. Ke5 {[%emt 0:00:11]} Qc3+ {[%emt 0:00:13]} 81. Kd5 {[%emt 0:00:52]} Qd3+ {[%emt 0:00:47]} 82. Kc6 {[%emt 0:00:21]} Qc4+ {[%emt 0:00:14]} 83. Kd7 {[%emt 0:00:34]} Qe6+ {[%emt 0:00:52]} 84. Kc7 {[%emt 0:00:19]} Qe5+ {[%emt 0:00:22]} 85. Kd8 {[%emt 0:00:15]} Qd6+ {[%emt 0:00:12]} 86. Kc8 {[%emt 0:00:53]} Qe6+ {[%emt 0:00:30]} 87. Kb8 {[%emt 0:00:12]} Qd6+ {[%emt 0:00:34]} 88. Ka8 {[%emt 0:00:06]} Qd8+ {[%emt 0:00:29]} 89. Qb8 {[%emt 0:00:20]} Qd5+ {[%emt 0:00:32]} 90. Ka7 {[%emt 0:00:10]} Qd7+ {[%emt 0:00:30]} 91. Kb6 {[%emt 0:00:06]} Qd4+ {[%emt 0:00:22]} 92. Kc6 {[%emt 0:00:55]} Qc4+ {[%emt 0:00:39]} 93. Kb7 {[%emt 0:00:05]} Qb5+ {[%emt 0:00:35]} 94. Ka7 {[%emt 0:00:05]} Qd7+ {[%emt 0:00:36]} 95. Ka8 {[%emt 0:00:21]} Qd5+ {[%emt 0:00:20]} 96. Qb7 {[%emt 0:00:05]} Qd8+ {[%emt 0:00:37]} 97. Ka7 {[%emt 0:00:30]} Qd4+ {[%emt 0:00:02]} 98. Kb8 {[%emt 0:00:07]} Qd6+ {[%emt 0:00:33]} 99. Kc8 {[%emt 0:00:08]} Qe6+ {[%emt 0:00:30]} 100. Kc7 {[%emt 0:00:00]} Qe5+ {[%emt 0:00:27]} 101. Kc6 {[%emt 0:00:00]} Qe4+ {[%emt 0:01:08]} 102. Kc5 {[%emt 0:00:27]} Qe3+ {[%emt 0:00:30]} 103. Kc4 {[%emt 0:00:00]} Qe2+ {[%emt 0:00:00]} 104. Kb3 {[%emt 0:00:05]} Qd1+ {[%emt 0:00:57]} 105. Ka3 {[%emt 0:00:30]} Qa1+ {[%emt 0:00:30]} 106. Kb4 {[%emt 0:00:00]} Qb2+ {[%emt 0:00:10]} 107. Ka5 {[%emt 0:00:01]} Qa3+ {[%emt 0:00:29]} 108. Kb6 1/2-1/2

[Event "FIDE World Cadets GU12 2022"]
[Site "Batumi"]
[Date "2022.09.26"]
[Round "10.2"]
[White "Goriachkina, Oksana"]
[Black "Mgeladze, Kesaria"]
[Result "1-0"]
[ECO "D20"]
[WhiteElo "1748"]
[BlackElo "1771"]
[Annotator "NA RC"]
[PlyCount "85"]
[EventDate "2022.09.16"]
[EventType "swiss"]
[EventCountry "GEO"]
[SourceTitle "playchess.com"]
[Source "ChessBase"]
[SourceQuality "1"]
[TimeControl "5400+30"]

1. d4 {[%emt 0:01:00]} d5 {[%emt 0:02:00]} 2. c4 {[%emt 0:00:30]} dxc4 {[%emt 0:00:30]} 3. e3 {[%emt 0:00:30]} c5 {[%emt 0:01:30]} 4. Bxc4 {[%emt 0:00:30]} cxd4 {[%emt 0:00:30]} 5. exd4 {[%emt 0:04:30]} e6 {[%emt 0:01:30]} 6. Nf3 {[%emt 0:00:30]} Bd6 {[%emt 0:00:30]} 7. Nc3 {[%emt 0:00:30]} Ne7 {[%emt 0:00:30]} 8. O-O {[%emt 0:02:30]} O-O {[%emt 0:00:00]} 9. Re1 {[%emt 0:05:30]} h6 {[%emt 0:02:00]} 10. d5 {[%emt 0:04:30]} exd5 {[%emt 0:05:30]} 11. Nxd5 {[%emt 0:00:30]} Nxd5 {[%emt 0:02:30]} 12. Bxd5 {[%emt 0:00:30]} Na6 {[%emt 0:03:30]} 13. Bc4 {[%emt 0:08:30]} Nc7 {[%emt 0:03:30]} 14. Be3 {[%emt 0:10:30]} Bg4 {[%emt 0:08:30]} 15. Qd4 {[%emt 0:06:30]} Bxf3 {[%emt 0:07:30]} 16. gxf3 {[%emt 0:00:00]} b5 {[%emt 0:24:30]} 17. Bb3 {[%emt 0:02:00]} a5 {[%emt 0:05:30]} 18. a3 {[%emt 0:09:30]} a4 {[%emt 0:02:30]} 19. Ba2 {[%emt 0:00:30]} Ra6 {[%emt 0:02:30]} 20. Rad1 {[%emt 0:02:30]} Qb8 {[%emt 0:08:47]} 21. Kh1 {[%emt 0:06:30]} Be7 {[%emt 0:06:27]} 22. Bf4 {[%emt 0:06:30]} Rd8 {[%emt 0:03:27]} 23. Qc3 {[%emt 0:06:30]} Bd6 {[%emt 0:00:55]} 24. Bxh6 {[%emt 0:03:25]} Bf8 {[%emt 0:02:37]} 25. Bf4 {[%emt 0:03:16]} Rxd1 {[%emt 0:01:34]} 26. Rxd1 {[%emt 0:00:01]} Qb7 {[%emt 0:00:33]} 27. Rd7 {[%emt 0:03:13]} Rc6 {[%emt 0:01:04]} 28. Bxf7+ {[%emt 0:03:17]} Kh8 {[%emt 0:00:06]} 29. Rxc7 {[%emt 0:01:42]} Qxc7 {[%emt 0:00:45]} 30. Bxc7 {[%emt 0:00:51]} Rxc3 {[%emt 0:00:30]} 31. bxc3 {[%emt 0:00:30]} Bxa3 {[%emt 0:00:00]} 32. Be8 {[%emt 0:03:10]} Bb2 {[%emt 0:00:00]} 33. Bxb5 {[%emt 0:00:33]} a3 {[%emt 0:00:15]} 34. Bc4 {[%emt 0:00:30]} Bxc3 {[%emt 0:00:30]} 35. Bd6 {[%emt 0:00:00]} Bb2 {[%emt 0:00:00]} 36. Kg2 {[%emt 0:00:00]} Kh7 {[%emt 0:00:00]} 37. Kg3 {[%emt 0:00:19]} Kg6 {[%emt 0:00:04]} 38. Kg4 {[%emt 0:00:30]} Kf6 {[%emt 0:00:00]} 39. f4 {[%emt 0:00:03]} Bc1 {[%emt 0:00:04]} 40. f5 {[%emt 0:00:26]} Bb2 {[%emt 0:00:38]} 41. f4 {[%emt 0:00:30]} Bc1 {[%emt 0:00:30]} 42. Be5+ {[%emt 0:00:00]} Ke7 {[%emt 0:00:00]} 43. Bxg7 {[%emt 0:00:00]} 1-0

[Event "FIDE World Cadets GU12 2022"]
[Site "Batumi"]
[Date "2022.09.26"]
[Round "10.3"]
[White "Abramkina, Veranika"]
[Black "Yousefian, Maedeh"]
[Result "1/2-1/2"]
[ECO "D33"]
[WhiteElo "1445"]
[BlackElo "1765"]
[Annotator "NA RC"]
[PlyCount "64"]
[EventDate "2022.09.16"]
[EventType "swiss"]
[EventCountry "GEO"]
[SourceTitle "playchess.com"]
[Source "ChessBase"]
[SourceQuality "1"]
[TimeControl "5400+30"]

1. Nf3 {[%emt 0:01:00]} Nf6 {[%emt 0:01:00]} 2. g3 {[%emt 0:00:00]} d5 {[%emt 0:00:00]} 3. Bg2 {[%emt 0:00:00]} c5 {[%emt 0:00:00]} 4. O-O {[%emt 0:00:30]} Nc6 {[%emt 0:00:30]} 5. c4 {[%emt 0:00:30]} e6 {[%emt 0:00:30]} 6. cxd5 {[%emt 0:00:30]} exd5 {[%emt 0:00:30]} 7. d4 {[%emt 0:00:00]} Be7 {[%emt 0:03:30]} 8. Nc3 {[%emt 0:00:00]} h6 {[%emt 0:01:30]} 9. dxc5 {[%emt 0:02:30]} Bxc5 {[%emt 0:00:00]} 10. Bf4 {[%emt 0:00:30]} O-O {[%emt 0:12:00]} 11. Rc1 {[%emt 0:01:30]} Be6 {[%emt 0:07:30]} 12. Na4 {[%emt 0:06:30]} Bd6 {[%emt 0:07:30]} 13. Bxd6 {[%emt 0:00:30]} Qxd6 {[%emt 0:00:30]} 14. Nc5 {[%emt 0:00:30]} b6 {[%emt 0:02:30]} 15. Nb3 {[%emt 0:10:30]} Rac8 {[%emt 0:02:30]} 16. e3 {[%emt 0:07:30]} Rc7 {[%emt 0:07:30]} 17. Nbd4 {[%emt 0:04:30]} Nxd4 {[%emt 0:01:30]} 18. Nxd4 {[%emt 0:00:30]} Rc4 {[%emt 0:09:30]} 19. Rxc4 {[%emt 0:07:30]} dxc4 {[%emt 0:01:30]} 20. Qa4 {[%emt 0:00:00]} a5 {[%emt 0:05:30]} 21. Rc1 {[%emt 0:03:00]} Rc8 {[%emt 0:01:30]} 22. Nxe6 {[%emt 0:01:30]} Qxe6 {[%emt 0:01:30]} 23. Bf1 {[%emt 0:00:30]} Rc5 {[%emt 0:09:30]} 24. Rd1 {[%emt 0:06:30]} Qc8 {[%emt 0:04:30]} 25. Rd6 {[%emt 0:01:30]} Qc7 {[%emt 0:00:30]} 26. Qd1 {[%emt 0:02:30]} b5 {[%emt 0:00:00]} 27. Qd4 {[%emt 0:10:30]} b4 {[%emt 0:02:30]} 28. e4 {[%emt 0:00:30]} Nh7 {[%emt 0:06:27]} 29. Rd7 {[%emt 0:02:30]} Qc6 {[%emt 0:04:24]} 30. Rd6 {[%emt 0:01:30]} Qc7 {[%emt 0:00:30]} 31. Rd7 {[%emt 0:00:30]} Qc6 {[%emt 0:01:27]} 32. Rd6 {[%emt 0:00:00]} Qc7 {[%emt 0:00:00]} 1/2-1/2

[Event "FIDE World Cadets GU12 2022"]
[Site "Batumi"]
[Date "2022.09.26"]
[Round "10.4"]
[White "Kaliakhmet, Elnaz"]
[Black "Ismayilova, Khanim"]
[Result "1-0"]
[ECO "E06"]
[WhiteElo "1864"]
[BlackElo "1901"]
[Annotator "NA RC"]
[PlyCount "81"]
[EventDate "2022.09.16"]
[EventType "swiss"]
[EventCountry "GEO"]
[SourceTitle "playchess.com"]
[Source "ChessBase"]
[SourceQuality "1"]
[TimeControl "5400+30"]

1. d4 {[%emt 0:01:00]} d5 {[%emt 0:01:00]} 2. c4 {[%emt 0:00:00]} e6 {[%emt 0:00:00]} 3. Nf3 {[%emt 0:00:00]} Nf6 {[%emt 0:00:00]} 4. Nc3 {[%emt 0:00:00]} Be7 {[%emt 0:00:30]} 5. g3 {[%emt 0:00:00]} O-O {[%emt 0:07:30]} 6. Bg2 {[%emt 0:00:30]} dxc4 {[%emt 0:04:30]} 7. Ne5 {[%emt 0:00:30]} c5 {[%emt 0:12:30]} 8. dxc5 {[%emt 0:00:30]} Qc7 {[%emt 0:01:30]} 9. Nxc4 {[%emt 0:05:30]} Qxc5 {[%emt 0:03:30]} 10. b3 {[%emt 0:16:30]} Nc6 {[%emt 0:05:30]} 11. Bb2 {[%emt 0:13:30]} Rd8 {[%emt 0:04:30]} 12. Qc1 {[%emt 0:01:30]} Qh5 {[%emt 0:08:30]} 13. O-O {[%emt 0:02:30]} e5 {[%emt 0:02:30]} 14. h4 {[%emt 0:14:30]} Nd4 {[%emt 0:03:30]} 15. Qg5 {[%emt 0:07:30]} Qxg5 {[%emt 0:06:30]} 16. hxg5 {[%emt 0:01:30]} Bb4 {[%emt 0:02:30]} 17. Rae1 {[%emt 0:06:30]} Bxc3 {[%emt 0:02:30]} 18. Bxc3 {[%emt 0:00:30]} Nd5 {[%emt 0:00:30]} 19. Bb2 {[%emt 0:01:30]} Nb4 {[%emt 0:02:30]} 20. Nxe5 {[%emt 0:08:58]} Nxa2 {[%emt 0:01:30]} 21. Bxd4 {[%emt 0:08:07]} Rxd4 {[%emt 0:00:30]} 22. e3 {[%emt 0:00:00]} Rd2 {[%emt 0:05:30]} 23. Nc4 {[%emt 0:01:53]} Rd3 {[%emt 0:04:30]} 24. Ra1 {[%emt 0:00:29]} Nb4 {[%emt 0:02:54]} 25. Nb6 {[%emt 0:01:53]} Rb8 {[%emt 0:01:29]} 26. Nxc8 {[%emt 0:00:40]} Rxc8 {[%emt 0:00:30]} 27. Rxa7 {[%emt 0:00:00]} Rxb3 {[%emt 0:01:46]} 28. Rxb7 {[%emt 0:00:00]} Rd8 {[%emt 0:07:19]} 29. Bd5 {[%emt 0:01:34]} Rb2 {[%emt 0:01:04]} 30. Bxf7+ {[%emt 0:00:30]} Kf8 {[%emt 0:00:00]} 31. Bc4 {[%emt 0:01:09]} Rdd2 {[%emt 0:03:24]} 32. Rf7+ {[%emt 0:01:25]} Ke8 {[%emt 0:00:23]} 33. Rxg7 {[%emt 0:00:59]} Rbc2 {[%emt 0:00:28]} 34. Be6 {[%emt 0:01:54]} Nd3 {[%emt 0:00:29]} 35. Bf5 {[%emt 0:01:41]} Nxf2 {[%emt 0:02:41]} 36. Bxc2 {[%emt 0:00:21]} Nh3+ {[%emt 0:00:30]} 37. Kh1 {[%emt 0:00:30]} Rxc2 {[%emt 0:00:00]} 38. Ra1 {[%emt 0:01:11]} Nf2+ {[%emt 0:00:10]} 39. Kg1 {[%emt 0:00:30]} Nh3+ {[%emt 0:00:30]} 40. Kf1 {[%emt 0:00:00]} Rf2+ {[%emt 0:00:00]} 41. Ke1 1-0

[Event "FIDE World Cadets GU12 2022"]
[Site "Batumi"]
[Date "2022.09.26"]
[Round "10.5"]
[White "Huseynli, Ayan"]
[Black "Shreya G Hipparagi"]
[Result "0-1"]
[ECO "D00"]
[WhiteElo "1572"]
[BlackElo "1574"]
[Annotator "NA RC"]
[PlyCount "74"]
[EventDate "2022.09.16"]
[EventType "swiss"]
[EventCountry "GEO"]
[SourceTitle "playchess.com"]
[Source "ChessBase"]
[SourceQuality "1"]
[TimeControl "5400+30"]

1. d4 {[%emt 0:01:00]} d5 {[%emt 0:01:00]} 2. e3 {[%emt 0:00:00]} Nf6 {[%emt 0:00:00]} 3. Bd3 {[%emt 0:00:00]} c5 {[%emt 0:00:00]} 4. c3 {[%emt 0:00:00]} Nc6 {[%emt 0:02:30]} 5. f4 {[%emt 0:00:00]} Bg4 {[%emt 0:01:30]} 6. Nf3 {[%emt 0:00:30]} e6 {[%emt 0:00:00]} 7. Nbd2 {[%emt 0:00:30]} Be7 {[%emt 0:01:00]} 8. O-O {[%emt 0:00:30]} Rc8 {[%emt 0:00:30]} 9. a4 {[%emt 0:07:30]} a6 {[%emt 0:01:30]} 10. h3 {[%emt 0:02:30]} Bf5 {[%emt 0:02:30]} 11. Bxf5 {[%emt 0:05:30]} exf5 {[%emt 0:00:30]} 12. Ne5 {[%emt 0:00:30]} Ne4 {[%emt 0:02:30]} 13. Nxe4 {[%emt 0:04:30]} fxe4 {[%emt 0:02:30]} 14. Qg4 {[%emt 0:02:30]} O-O {[%emt 0:02:30]} 15. f5 {[%emt 0:07:30]} f6 {[%emt 0:06:30]} 16. Nxc6 {[%emt 0:00:30]} Rxc6 {[%emt 0:00:00]} 17. Bd2 {[%emt 0:00:30]} c4 {[%emt 0:04:00]} 18. Be1 {[%emt 0:03:30]} Rb6 {[%emt 0:03:30]} 19. Ra2 {[%emt 0:00:30]} Rb3 {[%emt 0:02:30]} 20. Bg3 {[%emt 0:01:30]} Qa5 {[%emt 0:03:30]} 21. Rfa1 {[%emt 0:01:30]} Qb6 {[%emt 0:00:30]} 22. Qe2 {[%emt 0:01:30]} Kh8 {[%emt 0:00:30]} 23. h4 {[%emt 0:04:30]} g6 {[%emt 0:04:30]} 24. fxg6 {[%emt 0:03:30]} hxg6 {[%emt 0:00:00]} 25. h5 {[%emt 0:01:30]} g5 {[%emt 0:02:00]} 26. Rf1 {[%emt 0:05:30]} Qe6 {[%emt 0:01:30]} 27. Kf2 {[%emt 0:05:30]} f5 {[%emt 0:03:30]} 28. Ke1 {[%emt 0:03:30]} b5 {[%emt 0:01:30]} 29. axb5 {[%emt 0:05:30]} axb5 {[%emt 0:05:30]} 30. Kd2 {[%emt 0:03:30]} Bd6 {[%emt 0:02:30]} 31. Bxd6 {[%emt 0:10:30]} Qxd6 {[%emt 0:00:30]} 32. Kc2 {[%emt 0:02:13]} b4 {[%emt 0:00:30]} 33. Rfa1 {[%emt 0:06:43]} bxc3 {[%emt 0:01:30]} 34. bxc3 {[%emt 0:00:11]} Rfb8 {[%emt 0:00:30]} 35. Qe1 {[%emt 0:01:39]} f4 {[%emt 0:01:30]} 36. Qf2 {[%emt 0:05:07]} Qb6 {[%emt 0:01:30]} 37. Kd1 {[%emt 0:05:20]} Rb1+ {[%emt 0:00:30]} 0-1

[Event "FIDE World Cadets GU12 2022"]
[Site "Batumi"]
[Date "2022.09.26"]
[Round "10.6"]
[White "Urangoo, Gurvanbaatar"]
[Black "Merkulova, Victoria"]
[Result "0-1"]
[ECO "B78"]
[WhiteElo "1391"]
[BlackElo "1715"]
[Annotator "NA RC"]
[PlyCount "100"]
[EventDate "2022.09.16"]
[EventType "swiss"]
[EventCountry "GEO"]
[SourceTitle "playchess.com"]
[Source "ChessBase"]
[SourceQuality "1"]
[TimeControl "5400+30"]

1. e4 {[%emt 0:00:00]} c5 {[%emt 0:01:00]} 2. Nf3 {[%emt 0:00:30]} d6 {[%emt 0:00:00]} 3. d4 {[%emt 0:00:30]} cxd4 {[%emt 0:00:00]} 4. Nxd4 {[%emt 0:00:00]} Nf6 {[%emt 0:00:00]} 5. Nc3 {[%emt 0:00:00]} g6 {[%emt 0:00:00]} 6. Be3 {[%emt 0:00:30]} Bg7 {[%emt 0:00:30]} 7. f3 {[%emt 0:00:30]} O-O {[%emt 0:00:30]} 8. Bc4 {[%emt 0:00:00]} Nc6 {[%emt 0:00:00]} 9. Qd2 {[%emt 0:00:00]} Bd7 {[%emt 0:00:00]} 10. O-O-O {[%emt 0:00:00]} Rb8 {[%emt 0:00:30]} 11. Kb1 {[%emt 0:04:00]} b5 {[%emt 0:03:30]} 12. Bd3 {[%emt 0:00:00]} a5 {[%emt 0:10:30]} 13. h4 {[%emt 0:02:00]} Ne5 {[%emt 0:11:30]} 14. h5 {[%emt 0:01:30]} Nc4 {[%emt 0:07:30]} 15. Bxc4 {[%emt 0:00:30]} bxc4 {[%emt 0:00:30]} 16. Ka1 {[%emt 0:00:30]} a4 {[%emt 0:09:30]} 17. Bh6 {[%emt 0:05:30]} Qb6 {[%emt 0:03:30]} 18. Rb1 {[%emt 0:07:30]} Bxh6 {[%emt 0:06:30]} 19. Qxh6 {[%emt 0:00:30]} Qxd4 {[%emt 0:00:30]} 20. hxg6 {[%emt 0:03:30]} fxg6 {[%emt 0:05:30]} 21. e5 {[%emt 0:08:30]} dxe5 {[%emt 0:06:30]} 22. Rh4 {[%emt 0:01:30]} Qa7 {[%emt 0:04:30]} 23. a3 {[%emt 0:06:30]} Bc6 {[%emt 0:07:30]} 24. Rxc4 {[%emt 0:01:30]} Qb7 {[%emt 0:00:30]} 25. Qe3 {[%emt 0:06:30]} Bd5 {[%emt 0:04:46]} 26. Rxa4 {[%emt 0:01:30]} Ra8 {[%emt 0:02:27]} 27. Rxa8 {[%emt 0:05:30]} Rxa8 {[%emt 0:00:13]} 28. Qxe5 {[%emt 0:02:30]} Bf7 {[%emt 0:02:20]} 29. Re1 {[%emt 0:02:30]} Rb8 {[%emt 0:01:04]} 30. Rb1 {[%emt 0:06:30]} Rd8 {[%emt 0:01:12]} 31. Qe2 {[%emt 0:01:30]} Nd5 {[%emt 0:03:07]} 32. Ne4 {[%emt 0:02:30]} Nb4 {[%emt 0:01:01]} 33. Rh1 {[%emt 0:05:30]} Rc8 {[%emt 0:02:18]} 34. Rc1 {[%emt 0:06:30]} Qa7 {[%emt 0:02:51]} 35. Qd2 {[%emt 0:01:30]} Nxc2+ {[%emt 0:01:36]} 36. Kb1 {[%emt 0:16:00]} Nxa3+ {[%emt 0:02:29]} 37. bxa3 {[%emt 0:00:00]} Rb8+ {[%emt 0:00:19]} 38. Kc2 {[%emt 0:00:00]} Bb3+ {[%emt 0:00:20]} 39. Kb2 {[%emt 0:00:00]} Bc4+ {[%emt 0:01:02]} 40. Kc3 {[%emt 0:00:00]} Qxa3+ {[%emt 0:01:02]} 41. Kxc4 {[%emt 0:00:00]} Qb3+ {[%emt 0:00:00]} 42. Kd4 {[%emt 0:00:00]} Rd8+ {[%emt 0:00:00]} 43. Ke5 {[%emt 0:00:00]} Rxd2 {[%emt 0:00:21]} 44. Rc8+ {[%emt 0:00:00]} Kf7 {[%emt 0:00:15]} 45. Nxd2 {[%emt 0:00:00]} Qe6+ {[%emt 0:00:04]} 46. Kf4 {[%emt 0:00:00]} Qxc8 {[%emt 0:00:30]} 47. Ne4 {[%emt 0:00:00]} Qf5+ {[%emt 0:00:00]} 48. Kg3 {[%emt 0:00:00]} g5 {[%emt 0:00:04]} 49. Nf2 {[%emt 0:00:00]} Qf4+ {[%emt 0:00:30]} 50. Kh3 {[%emt 0:00:00]} Qh4# {[%emt 0:00:00]} 0-1